{"text_format":"1","workbook":"xlsx","n_sheets":3,"sheets":["CDC PROVENÇAL 2025 - D1 GRA","CDC PROVENÇAL 2025 - D1 GRB","FINALES"],"not_rendered":{"charts":0,"images":5,"macros":1,"external_links":0,"defined_names":2,"comments":0,"pivot_tables":0},"unopened":[],"bounds":{"document_bytes":16777216,"sheet_cells":100000,"rows_first":2000,"rows_last":500,"rows_between":2000,"halvings":0,"cell_chars":16384,"cell_head_chars":4096},"cells_cut":0,"cells_raw":0,"read":"whole","date_system":"1900"}

{"sheet":"CDC PROVENÇAL 2025 - D1 GRA","index":0,"n_rows":302,"n_cols":22,"rows_kept":302,"cut":false,"hidden":false,"merged":[[20,1,20,10],[21,1,21,10],[0,2,0,5],[3,2,3,5],[3,6,3,7],[6,2,6,5],[18,1,18,10],[19,1,19,10]]}
[1,"JOIGNY 1","  Match 1 : à TONNERRE - Dimanche 13 Avril à 8H00",null,null,null,null,null,null,null,null,null,null,null,null,null,null,"Pt","TPt","T+/-","+","-"]
[2,"TONNERRE 1",{"$f":"$B$1","v":"JOIGNY 1"},{"$f":"$B$4","v":"VAUX 1"},null,{"$f":"IF(E2=\"\",\"\",IF(E2=\"F\",\"G\",IF(E2=\"G\",\"F\",24-E2)))","v":""},null,null,null,null,null,null,null,null,null,0,null,{"$f":"IF(Q2=\"\",\"\",IF(Q2=\"F\",0,IF(Q2=12,2,IF(Q2>12,3,1))))","v":""},null,null,{"$f":"IF(Q2=\"G\",24,IF(Q2=\"\",0,Q2))","v":0},{"$f":"IF(Q2=\"\",\"\",IF(U2=24,24,IF(U2=0,-24,IF(U2=12.5,12.5,IF(U2=\"f\",-24,U2-(24-U2))))))","v":""}]
[3,"MIGENNES 2",{"$f":"$B$2","v":"TONNERRE 1"},{"$f":"$B$3","v":"MIGENNES 2"},null,{"$f":"IF(E3=\"\",\"\",IF(E3=\"F\",\"G\",IF(E3=\"G\",\"F\",24-E3)))","v":""},null,null,null,null,null,null,null,null,null,0,null,{"$f":"IF(Q3=\"\",\"\",IF(Q3=\"F\",0,IF(Q3=12,2,IF(Q3>12,3,1))))","v":""},null,null,0,""]
[5,"VAUX 1","  Match 2 : à TONNERRE - Dimanche 13 Avril  à 14H00",null,null,null,"Classement",null,null,null,null,null,null,null,null,0,null,"",null,null,0,""]
[null,null,{"$f":"$B$1","v":"JOIGNY 1"},{"$f":"$B$3","v":"MIGENNES 2"},null,{"$f":"IF(E5=\"\",\"\",IF(E5=\"F\",\"G\",IF(E5=\"G\",\"F\",24-E5)))","v":""},null,null,"Pts","+/-",null,null,null,null,null,0,"","",null,null,0,""]
[null,null,{"$f":"$B$2","v":"TONNERRE 1"},{"$f":"$B$4","v":"VAUX 1"},null,{"$f":"IF(E6=\"\",\"\",IF(E6=\"F\",\"G\",IF(E6=\"G\",\"F\",24-E6)))","v":""},1,null,null,null,null,null,null,null,null,0,null,"",null,null,0,""]
["Rappel:",null,"  Match 3 : à ST BRIS - Dimanche  22 Juin à 8H00",null,null,null,2,null,null,null,null,null,null,null,null,0,null,"",null,null,0,""]
["sont à remplir",null,{"$f":"$B$1","v":"JOIGNY 1"},{"$f":"$B$2","v":"TONNERRE 1"},null,{"$f":"IF(E8=\"\",\"\",IF(E8=\"F\",\"G\",IF(E8=\"G\",\"F\",24-E8)))","v":""},3,null,null,null,null,null,null,null,null,0,null,"",null,null,0,""]
[null,null,{"$f":"$B$3","v":"MIGENNES 2"},{"$f":"$B$4","v":"VAUX 1"},null,{"$f":"IF(E9=\"\",\"\",IF(E9=\"F\",\"G\",IF(E9=\"G\",\"F\",24-E9)))","v":""},4,null,null,null,null,null,null,null,null,0,"","",null,null,0,""]
[null,null,null,null,null,null,null,null,null,null,null,null,null,null,null,0,"","",{"$f":"SUM(R5:R10)","v":0},{"$f":"SUM(V5:V10)","v":0},0,""]
[null,null,null,null,null,null,null,null,null,null,null,null,null,null,null,0,"","",null,null,0,""]
[null,null,null,null,null,null,null,null,null,null,null,null,null,null,null,0,"","",null,null,0,""]
[null,null,null,null,null,null,null,null,null,null,null,null,null,null,null,0,null,"",null,null,0,""]
[null,null,null,null,null,null,null,null,null,null,null,null,null,null,null,0,null,"",null,null,0,""]
[null,null,null,null,null,null,null,null,null,null,null,null,null,null,null,0,null,"",null,null,0,""]
[null,null,null,null,null,null,null,null,null,null,null,null,null,null,null,0,null,"",null,null,0,""]
[null,null,null,null,null,null,null,null,null,null,null,null,null,null,null,0,"","",null,null,0,""]
[null,null,null,null,null,null,null,null,null,null,null,null,null,null,null,0,null,"",null,null,0,""]
[null,"FÉDÉRATION FRANÇAISE DE PÉTANQUE ET JEU PROVENÇAL",null,null,null,null,null,null,null,null,null,null,null,null,null,0,null,"",null,null,0,{"$f":"IF(Q19=\"\",\"\",IF(U19=24,24,IF(U19=0,-24,IF(U19=12.5,12.5,IF(U19=\"f\",-24,U19-(24-U19))))))","v":""}]
[null,"AGRÉÉE PAR LE MINISTÈRE DE LA JEUNESSE ET  DES SPORTS ",null,null,null,null,null,null,null,null,null,null,null,null,null,0,null,"",null,null,0,{"$f":"IF(Q20=\"\",\"\",IF(U20=24,24,IF(U20=0,-24,IF(U20=12.5,12.5,IF(U20=\"f\",-24,U20-(24-U20))))))","v":""}]
[null,"TERRITOIRE DE BOURGOGNE ",null,null,null,null,null,null,null,null,null,null,null,null,null,0,null,"",{"$f":"SUM(R17:R21)","v":0},{"$f":"SUM(V17:V21)","v":0},0,""]
[null,"Championnat Départemental des Clubs 2025 Provençal Division 1 Groupe A",null,null,null,null,null,null,null,null,null,null,null,null,null,0,"","",null,null,0,""]
[null,null,null,null,null,null,null,null,null,null,null,null,null,null,null,0,"","",null,null,0,""]
[null,null,null,null,null,null,null,null,null,null,null,null,null,null,null,0,"","",null,null,0,""]
[null,null,null,null,null,null,null,null,null,null,null,null,null,null,null,0,"","",null,null,0,""]
[null,null,null,null,null,null,null,null,null,null,null,null,null,null,null,0,null,"",{"$f":"SUM(R22:R26)","v":0},{"$f":"SUM(V22:V26)","v":0},0,""]
[null,null,null,null,null,null,null,null,null,null,null,null,null,null,null,0,null,"",null,null,0,""]
[null,null,null,null,null,null,null,null,null,null,null,null,null,null,null,0,"","",null,null,0,""]
[null,null,null,null,null,null,null,null,null,null,null,null,null,null,null,0,"","",null,null,0,""]
[null,null,null,null,null,null,null,null,null,null,null,null,null,null,null,0,null,"",null,null,0,""]
[null,null,null,null,null,null,null,null,null,null,null,null,null,null,null,0,"","",null,null,0,""]
[null,null,null,null,null,null,null,null,null,null,null,null,null,null,null,0,"","",null,null,{"$f":"IF(Q32=\"G\",24,IF(Q32=\"\",0,Q32))","v":0},""]
[null,null,null,null,null,null,null,null,null,null,null,null,null,null,null,0,null,"",null,null,{"$f":"IF(Q33=\"G\",24,IF(Q33=\"\",0,Q33))","v":0},""]
[null,null,null,null,null,null,null,null,null,null,null,null,null,null,null,0,null,"",null,null,0,""]
[null,null,null,null,null,null,null,null,null,null,null,null,null,null,null,0,"","",null,null,0,""]
[null,null,null,null,null,null,null,null,null,null,null,null,null,null,null,0,"","",{"$f":"SUM(R33:R36)","v":0},{"$f":"SUM(V33:V36)","v":0},0,""]
[]
[]
[]
[]
[]
[]
[]
[]
[]
[]
[]
[]
[]
[]
[]
[]
[]
[]
[]
[]
[]
[]
[]
[]
[]
[]
[]
[]
[]
[]
[]
[]
[]
[]
[]
[]
[]
[]
[]
[]
[]
[]
[]
[]
[]
[]
[]
[]
[]
[]
[]
[]
[]
[]
[]
[]
[]
[]
[]
[]
[]
[]
[]
[]
[]
[]
[]
[]
[]
[]
[]
[]
[]
[]
[]
[]
[]
[]
[]
[]
[]
[]
[]
[]
[]
[]
[]
[]
[]
[]
[]
[]
[]
[]
[]
[]
[]
[]
[]
[]
[]
[]
[]
[]
[]
[]
[]
[]
[]
[]
[]
[]
[]
[]
[]
[]
[]
[]
[]
[]
[]
[]
[]
[]
[]
[]
[]
[]
[]
[]
[]
[]
[]
[]
[]
[]
[]
[]
[]
[]
[]
[]
[]
[]
[]
[]
[]
[]
[]
[]
[]
[]
[]
[]
[]
[]
[]
[]
[]
[]
[]
[]
[]
[]
[]
[]
[]
[]
[]
[]
[]
[]
[]
[]
[]
[]
[]
[]
[]
[]
[]
[]
[]
[]
[]
[]
[]
[]
[]
[]
[]
[]
[]
[]
[]
[]
[]
[]
[]
[]
[]
[]
[]
[]
[]
[]
[]
[]
[]
[]
[]
[]
[]
[]
[]
[]
[]
[]
[]
[]
[]
[]
[]
[]
[]
[]
[]
[]
[]
[]
[]
[null,"1) Remplir la liste des Clubs composant le Groupe (Colonne B1 à B14)"]
[]
[null,"2) Le calendrier se fait automatiquement"]
[]
[null,"3) Pour chaque rencontre: mettre uniquemment le score de la premiere équipe (Case Blanche,la rouge sera remplie automatiquement)"]
[]
[null,"4) Le score de l'adversaire se mettra automatiquement"]
[]
[null,"Exemple:"]
[null,"L' équipe 1 Gagne par 32 à 4 : il faut mettre 32 pour le score de L'équipe 1 contre l'équipe 2 (4 sera automatique)"]
[null,null,"Essayez : Tapez 32 ici"]
[]
[null,null,{"$f":"$B$3","v":"MIGENNES 2"},{"$f":"$B$1","v":"JOIGNY 1"},null,{"$f":"IF(E280=\"\",\"\",IF(E280=\"F\",\"G\",IF(E280=\"G\",\"F\",36-E280)))","v":""}]
[null,null,{"$f":"$B$2","v":"TONNERRE 1"},"Equipe 4",null,{"$f":"IF(E281=\"\",\"\",IF(E281=\"F\",\"G\",IF(E281=\"G\",\"F\",36-E281)))","v":""}]
[]
[null,null,"Essayez : Tapez 17 ici"]
[]
[null,"L' équipe 4 Gagne par 19 à 17 : il faut mettre 17 pour le score de L'équipe 3 contre l'équipe 2 (19  sera automatique)"]
[]
[null,"5) Pour le Forfait : Mettre F si Premiere equipe Forfait sinon mettre G"]
[]
[null,"Exemple:"]
[null,"L' équipe 1 est forfait : il faut mettre un F pour le score de L'équipe 1 contre l'équipe 2 (G est automatique)"]
[null,null,"Essayez : Tapez un F ici"]
[]
[null,null,{"$f":"$B$3","v":"MIGENNES 2"},{"$f":"$B$1","v":"JOIGNY 1"},null,{"$f":"IF(E293=\"\",\"\",IF(E293=\"F\",\"G\",IF(E293=\"G\",\"F\",36-E293)))","v":""}]
[null,null,{"$f":"$B$2","v":"TONNERRE 1"},"Equipe 4",null,{"$f":"IF(E294=\"\",\"\",IF(E294=\"F\",\"G\",IF(E294=\"G\",\"F\",36-E294)))","v":""}]
[]
[null,null,"Essayez : Tapez un G ici"]
[null,"L' équipe 4 est forfait : il faut mettre un G pour le score de L'équipe 3 contre l'équipe 4 (F est automatique)"]
[]
[]
[null,"En cas de Forfait : le score attribué est 19 à 0"]
[]
[null,"Ne pas oublier d'appuyer sur le bouton Maj Classement sous le Classement"]

{"sheet":"CDC PROVENÇAL 2025 - D1 GRB","index":1,"n_rows":302,"n_cols":22,"rows_kept":302,"cut":false,"hidden":false,"merged":[[21,1,21,10],[0,2,0,5],[3,2,3,5],[3,6,3,7],[6,2,6,5],[18,1,18,10],[19,1,19,10],[20,1,20,10]]}
[1,"STADE AUXERRE 1","  Match 1 : à TONNERRE - Dimanche 13 Avril à 8H00",null,null,null,null,null,null,null,null,null,null,null,null,null,null,"Pt","TPt","T+/-","+","-"]
[2,"ST FLORENTIN 1",{"$f":"$B$1","v":"STADE AUXERRE 1"},{"$f":"$B$4","v":"CHEU 1"},null,{"$f":"IF(E2=\"\",\"\",IF(E2=\"F\",\"G\",IF(E2=\"G\",\"F\",24-E2)))","v":""},null,null,null,null,null,null,null,null,null,0,null,{"$f":"IF(Q2=\"\",\"\",IF(Q2=\"F\",0,IF(Q2=12,2,IF(Q2>12,3,1))))","v":""},null,null,{"$f":"IF(Q2=\"G\",24,IF(Q2=\"\",0,Q2))","v":0},{"$f":"IF(Q2=\"\",\"\",IF(U2=24,24,IF(U2=0,-24,IF(U2=12.5,12.5,IF(U2=\"f\",-24,U2-(24-U2))))))","v":""}]
[3,"MIGENNES 1",{"$f":"$B$2","v":"ST FLORENTIN 1"},{"$f":"$B$3","v":"MIGENNES 1"},null,{"$f":"IF(E3=\"\",\"\",IF(E3=\"F\",\"G\",IF(E3=\"G\",\"F\",24-E3)))","v":""},null,null,null,null,null,null,null,null,null,0,null,{"$f":"IF(Q3=\"\",\"\",IF(Q3=\"F\",0,IF(Q3=12,2,IF(Q3>12,3,1))))","v":""},null,null,0,""]
[5,"CHEU 1","  Match 2 : à TONNERRE - Dimanche 13 Avril  à 14H00",null,null,null,"Classement",null,null,null,null,null,null,null,null,0,null,"",null,null,0,""]
[null,null,{"$f":"$B$1","v":"STADE AUXERRE 1"},{"$f":"$B$3","v":"MIGENNES 1"},null,{"$f":"IF(E5=\"\",\"\",IF(E5=\"F\",\"G\",IF(E5=\"G\",\"F\",24-E5)))","v":""},null,null,"Pts","+/-",null,null,null,null,null,0,"","",null,null,0,""]
[null,null,{"$f":"$B$2","v":"ST FLORENTIN 1"},{"$f":"$B$4","v":"CHEU 1"},null,{"$f":"IF(E6=\"\",\"\",IF(E6=\"F\",\"G\",IF(E6=\"G\",\"F\",24-E6)))","v":""},1,null,null,null,null,null,null,null,null,0,null,"",null,null,0,""]
["Rappel:",null,"  Match 3 : à ST BRIS - Dimanche  22 Juin à 8H00",null,null,null,2,null,null,null,null,null,null,null,null,0,null,"",null,null,0,""]
["sont à remplir",null,{"$f":"$B$1","v":"STADE AUXERRE 1"},{"$f":"$B$2","v":"ST FLORENTIN 1"},null,{"$f":"IF(E8=\"\",\"\",IF(E8=\"F\",\"G\",IF(E8=\"G\",\"F\",24-E8)))","v":""},3,null,null,null,null,null,null,null,null,0,null,"",null,null,0,""]
[null,null,{"$f":"$B$3","v":"MIGENNES 1"},{"$f":"$B$4","v":"CHEU 1"},null,{"$f":"IF(E9=\"\",\"\",IF(E9=\"F\",\"G\",IF(E9=\"G\",\"F\",24-E9)))","v":""},4,null,null,null,null,null,null,null,null,0,"","",null,null,0,""]
[null,null,null,null,null,null,null,null,null,null,null,null,null,null,null,0,"","",{"$f":"SUM(R5:R10)","v":0},{"$f":"SUM(V5:V10)","v":0},0,""]
[null,null,null,null,null,null,null,null,null,null,null,null,null,null,null,0,"","",null,null,0,""]
[null,null,null,null,null,null,null,null,null,null,null,null,null,null,null,0,"","",null,null,0,""]
[null,null,null,null,null,null,null,null,null,null,null,null,null,null,null,0,null,"",null,null,0,""]
[null,null,null,null,null,null,null,null,null,null,null,null,null,null,null,0,null,"",null,null,0,""]
[null,null,null,null,null,null,null,null,null,null,null,null,null,null,null,0,null,"",null,null,0,""]
[null,null,null,null,null,null,null,null,null,null,null,null,null,null,null,0,null,"",null,null,0,""]
[null,null,null,null,null,null,null,null,null,null,null,null,null,null,null,0,"","",null,null,0,""]
[null,null,null,null,null,null,null,null,null,null,null,null,null,null,null,0,null,"",null,null,0,""]
[null,"FÉDÉRATION FRANÇAISE DE PÉTANQUE ET JEU PROVENÇAL",null,null,null,null,null,null,null,null,null,null,null,null,null,0,null,"",null,null,0,{"$f":"IF(Q19=\"\",\"\",IF(U19=24,24,IF(U19=0,-24,IF(U19=12.5,12.5,IF(U19=\"f\",-24,U19-(24-U19))))))","v":""}]
[null,"AGRÉÉE PAR LE MINISTÈRE DE LA JEUNESSE ET  DES SPORTS ",null,null,null,null,null,null,null,null,null,null,null,null,null,0,null,"",null,null,0,{"$f":"IF(Q20=\"\",\"\",IF(U20=24,24,IF(U20=0,-24,IF(U20=12.5,12.5,IF(U20=\"f\",-24,U20-(24-U20))))))","v":""}]
[null,"TERRITOIRE DE BOURGOGNE ",null,null,null,null,null,null,null,null,null,null,null,null,null,0,null,"",{"$f":"SUM(R17:R21)","v":0},{"$f":"SUM(V17:V21)","v":0},0,""]
[null,"Championnat Départemental des Clubs 2025 Provençal Division 1 Groupe B",null,null,null,null,null,null,null,null,null,null,null,null,null,0,"","",null,null,0,""]
[null,null,null,null,null,null,null,null,null,null,null,null,null,null,null,0,"","",null,null,0,""]
[null,null,null,null,null,null,null,null,null,null,null,null,null,null,null,0,"","",null,null,0,""]
[null,null,null,null,null,null,null,null,null,null,null,null,null,null,null,0,"","",null,null,0,""]
[null,null,null,null,null,null,null,null,null,null,null,null,null,null,null,0,null,"",{"$f":"SUM(R22:R26)","v":0},{"$f":"SUM(V22:V26)","v":0},0,""]
[null,null,null,null,null,null,null,null,null,null,null,null,null,null,null,0,null,"",null,null,0,""]
[null,null,null,null,null,null,null,null,null,null,null,null,null,null,null,0,"","",null,null,0,""]
[null,null,null,null,null,null,null,null,null,null,null,null,null,null,null,0,"","",null,null,0,""]
[null,null,null,null,null,null,null,null,null,null,null,null,null,null,null,0,null,"",null,null,0,""]
[null,null,null,null,null,null,null,null,null,null,null,null,null,null,null,0,"","",null,null,0,""]
[null,null,null,null,null,null,null,null,null,null,null,null,null,null,null,0,"","",null,null,{"$f":"IF(Q32=\"G\",24,IF(Q32=\"\",0,Q32))","v":0},""]
[null,null,null,null,null,null,null,null,null,null,null,null,null,null,null,0,null,"",null,null,{"$f":"IF(Q33=\"G\",24,IF(Q33=\"\",0,Q33))","v":0},""]
[null,null,null,null,null,null,null,null,null,null,null,null,null,null,null,0,null,"",null,null,0,""]
[null,null,null,null,null,null,null,null,null,null,null,null,null,null,null,0,"","",null,null,0,""]
[null,null,null,null,null,null,null,null,null,null,null,null,null,null,null,0,"","",{"$f":"SUM(R33:R36)","v":0},{"$f":"SUM(V33:V36)","v":0},0,""]
[]
[]
[]
[]
[]
[]
[]
[]
[]
[]
[]
[]
[]
[]
[]
[]
[]
[]
[]
[]
[]
[]
[]
[]
[]
[]
[]
[]
[]
[]
[]
[]
[]
[]
[]
[]
[]
[]
[]
[]
[]
[]
[]
[]
[]
[]
[]
[]
[]
[]
[]
[]
[]
[]
[]
[]
[]
[]
[]
[]
[]
[]
[]
[]
[]
[]
[]
[]
[]
[]
[]
[]
[]
[]
[]
[]
[]
[]
[]
[]
[]
[]
[]
[]
[]
[]
[]
[]
[]
[]
[]
[]
[]
[]
[]
[]
[]
[]
[]
[]
[]
[]
[]
[]
[]
[]
[]
[]
[]
[]
[]
[]
[]
[]
[]
[]
[]
[]
[]
[]
[]
[]
[]
[]
[]
[]
[]
[]
[]
[]
[]
[]
[]
[]
[]
[]
[]
[]
[]
[]
[]
[]
[]
[]
[]
[]
[]
[]
[]
[]
[]
[]
[]
[]
[]
[]
[]
[]
[]
[]
[]
[]
[]
[]
[]
[]
[]
[]
[]
[]
[]
[]
[]
[]
[]
[]
[]
[]
[]
[]
[]
[]
[]
[]
[]
[]
[]
[]
[]
[]
[]
[]
[]
[]
[]
[]
[]
[]
[]
[]
[]
[]
[]
[]
[]
[]
[]
[]
[]
[]
[]
[]
[]
[]
[]
[]
[]
[]
[]
[]
[]
[]
[]
[]
[]
[]
[]
[]
[]
[]
[]
[null,"1) Remplir la liste des Clubs composant le Groupe (Colonne B1 à B14)"]
[]
[null,"2) Le calendrier se fait automatiquement"]
[]
[null,"3) Pour chaque rencontre: mettre uniquemment le score de la premiere équipe (Case Blanche,la rouge sera remplie automatiquement)"]
[]
[null,"4) Le score de l'adversaire se mettra automatiquement"]
[]
[null,"Exemple:"]
[null,"L' équipe 1 Gagne par 32 à 4 : il faut mettre 32 pour le score de L'équipe 1 contre l'équipe 2 (4 sera automatique)"]
[null,null,"Essayez : Tapez 32 ici"]
[]
[null,null,{"$f":"$B$3","v":"MIGENNES 1"},{"$f":"$B$1","v":"STADE AUXERRE 1"},null,{"$f":"IF(E280=\"\",\"\",IF(E280=\"F\",\"G\",IF(E280=\"G\",\"F\",36-E280)))","v":""}]
[null,null,{"$f":"$B$2","v":"ST FLORENTIN 1"},"Equipe 4",null,{"$f":"IF(E281=\"\",\"\",IF(E281=\"F\",\"G\",IF(E281=\"G\",\"F\",36-E281)))","v":""}]
[]
[null,null,"Essayez : Tapez 17 ici"]
[]
[null,"L' équipe 4 Gagne par 19 à 17 : il faut mettre 17 pour le score de L'équipe 3 contre l'équipe 2 (19  sera automatique)"]
[]
[null,"5) Pour le Forfait : Mettre F si Premiere equipe Forfait sinon mettre G"]
[]
[null,"Exemple:"]
[null,"L' équipe 1 est forfait : il faut mettre un F pour le score de L'équipe 1 contre l'équipe 2 (G est automatique)"]
[null,null,"Essayez : Tapez un F ici"]
[]
[null,null,{"$f":"$B$3","v":"MIGENNES 1"},{"$f":"$B$1","v":"STADE AUXERRE 1"},null,{"$f":"IF(E293=\"\",\"\",IF(E293=\"F\",\"G\",IF(E293=\"G\",\"F\",36-E293)))","v":""}]
[null,null,{"$f":"$B$2","v":"ST FLORENTIN 1"},"Equipe 4",null,{"$f":"IF(E294=\"\",\"\",IF(E294=\"F\",\"G\",IF(E294=\"G\",\"F\",36-E294)))","v":""}]
[]
[null,null,"Essayez : Tapez un G ici"]
[null,"L' équipe 4 est forfait : il faut mettre un G pour le score de L'équipe 3 contre l'équipe 4 (F est automatique)"]
[]
[]
[null,"En cas de Forfait : le score attribué est 19 à 0"]
[]
[null,"Ne pas oublier d'appuyer sur le bouton Maj Classement sous le Classement"]

{"sheet":"FINALES","index":2,"n_rows":6,"n_cols":4,"rows_kept":6,"cut":false,"hidden":false,"merged":[[0,1,0,4]]}
[null,"Classement : à ST BRIS - Dimanche  22 Juin à 14H00"]
[null,"POULE A",null,"POULE B"]
["1er",null,"VS"]
["2éme",null,"VS"]
["3éme",null,"VS"]
["4éme",null,"VS"]